bitfinex/quotes_ETHUSD_20250422
["timestamp","ask_amount","ask_price","bid_price","bid_amount"]
[1745343936287,7.35417556,1696.0,1695.8,0.11545468]
[1745343936514,12.78597409,1695.9,1695.4,3.0]
[1745343936825,0.7894,1695.6,1695.0,11.79908845]
[1745343936995,6.8894,1695.6,1695.0,5.89946531]
[1745343937326,12.78708177,1695.6,1695.1,0.58994653]
[1745343937519,12.78708177,1695.6,1695.0,5.788]
[1745343937701,12.78708177,1695.6,1695.1,3.0]
[1745343938027,0.7894,1695.4,1694.9,12.45851037]
[1745343938386,0.7894,1695.4,1695.0,3.0]
[1745343938700,0.7894,1695.4,1695.0,3.05899084]
[1745343938896,6.1,1695.6,1695.1,5.8992048]
[1745343939098,6.8894,1695.6,1695.1,0.05898351]
[1745343939305,6.8894,1695.6,1695.0,10.45130068]
[1745343939504,12.78706235,1695.6,1695.0,10.45130068]
[1745343941220,12.78706235,1695.6,1695.0,4.55175012]
[1745343941524,14.06576859,1695.6,1695.0,10.45143955]
[1745343942525,14.06576859,1695.6,1695.0,4.55175012]
[1745343942711,8.16810624,1695.6,1695.0,10.45141776]
[1745343943114,14.06577302,1695.6,1695.0,10.45141776]
[1745343944222,14.06577302,1695.6,1695.0,4.55175012]
[1745343944405,1.4065773,1695.5,1695.0,4.61073864]
[1745343944935,0.7621,1695.4,1695.0,3.0]
[1745343945140,6.66053006,1695.4,1695.0,3.0]
[1745343945423,0.7621,1695.4,1695.0,3.0]
[1745343948391,0.7621,1695.4,1695.1,0.11111454]
[1745343951048,6.6604302,1695.4,1695.1,0.11111454]
[1745343951250,7.91628177,1695.4,1695.1,0.11111454]
[1745343952114,2.01795157,1695.4,1695.1,0.11111454]
[1745343953049,7.91629563,1695.4,1695.1,0.11111454]
[1745343953551,8.11795157,1695.4,1695.1,0.11111454]
[1745343953919,14.01633826,1695.4,1695.1,0.11111454]
[1745343954123,6.66110896,1695.2,1695.1,0.11111454]
[1745343954454,12.76139859,1695.2,1695.1,0.11111454]
[1745343954748,5.89992241,1695.0,1694.4,6.70540929]
[1745343954949,5.90022498,1694.9,1694.4,0.8038]
[1745343955252,0.7621,1694.8,1694.4,4.8931826]
[1745343955449,6.1,1694.8,1694.1,0.29221625]
[1745343955653,5.90167189,1694.5,1693.9,6.05]
[1745343955848,12.00167189,1694.5,1693.8,12.6110942]
[1745343956150,5.9026537,1694.2,1693.8,0.8038]
[1745343956352,5.9026537,1694.2,1693.6,6.8664]
[1745343956561,5.9026537,1694.2,1693.7,0.68664]
[1745343956955,5.9026537,1694.2,1693.7,3.68664]
[1745343957153,5.90234163,1694.3,1693.7,3.68664]
[1745343957466,6.65247908,1694.4,1693.7,9.62166881]
[1745343957970,6.65247908,1694.4,1693.7,15.5256867]
[1745343958169,6.65247908,1694.4,1693.8,7.5811964]
[1745343958375,6.65247908,1694.4,1693.8,1.67733574]
[1745343958671,0.7505,1694.4,1693.8,1.67733574]
[1745343958867,0.7505,1694.4,1693.8,7.58109373]
[1745343959074,6.65241262,1694.4,1693.8,1.67733574]
[1745343959271,9.88719735,1694.4,1693.9,3.8164]
[1745343959478,6.1,1694.4,1694.0,0.13107079]
[1745343959636,6.1,1694.4,1694.1,3.0]
[1745343959841,6.1,1694.4,1694.2,0.13016346]
[1745343960871,6.1,1694.4,1694.2,1.25957981]
[1745343961051,6.1,1694.4,1694.3,3.0]
[1745343961242,0.7505,1694.6,1694.3,3.12944223]
[1745343961442,6.1,1694.7,1694.3,9.0315825]
[1745343961676,6.1,1694.7,1694.4,5.901754]
[1745343961864,6.8505,1694.9,1694.5,9.0290427]
[1745343962064,6.8505,1694.9,1694.5,11.3385031]
[1745343962379,6.8505,1694.9,1694.5,5.43705903]
[1745343963180,5.90050663,1694.8,1694.5,0.12759863]
[1745343963548,11.80121813,1694.8,1694.5,0.12759863]
[1745343963749,12.11339682,1694.9,1694.2,3.0]
[1745343963958,6.65177943,1694.6,1694.2,3.0]
[1745343964156,6.65177943,1694.6,1694.1,5.78]
[1745343964356,7.90705099,1694.6,1694.1,6.22360567]
[1745343964562,2.00577156,1694.6,1694.1,6.22360567]
[1745343964884,13.80832127,1694.6,1694.1,5.78]
[1745343965081,7.90689572,1694.6,1694.1,3.0]
[1745343965482,2.00577156,1694.6,1694.1,3.0]
[1745343965660,2.00577156,1694.6,1694.1,4.56224846]
[1745343966385,7.90698515,1694.6,1694.1,4.56224846]
[1745343967088,5.90146195,1694.5,1694.1,3.0]
[1745343967448,19.90840209,1694.6,1694.1,3.0]
[1745343967649,5.90147702,1694.5,1694.1,3.0]
[1745343967851,12.00147702,1694.5,1694.0,0.8164]
[1745343968086,6.6526951,1694.3,1693.9,6.21936106]
[1745343968259,7.908168,1694.3,1693.9,5.78]
[1745343968588,5.90273033,1694.2,1693.5,6.72110858]
[1745343968799,5.90299469,1694.1,1693.6,3.0]
[1745343969263,6.1,1694.2,1693.7,3.05903474]
[1745343969459,6.1,1694.2,1693.8,0.8164]
[1745343969899,7.50082915,1694.2,1693.8,0.8164]
[1745343970201,7.50082915,1694.2,1693.7,3.0]
[1745343970367,7.50082915,1694.2,1693.7,8.904227]
[1745343970893,7.50082915,1694.2,1693.7,3.0]
[1745343971092,7.50082915,1694.2,1693.6,3.8164]
[1745343971295,0.75008292,1694.1,1693.6,3.8164]
[1745343971603,0.75008292,1694.1,1693.6,0.8164]
[1745343971810,0.8085,1694.0,1693.6,0.8164]
[1745343972179,0.75008292,1694.1,1693.6,12.62524367]
[1745343972388,6.9085,1694.2,1693.6,6.72079161]
[1745343972811,6.9085,1694.2,1693.6,0.8164]
[1745343972997,6.9085,1694.2,1693.7,3.0]
[1745343973276,6.9085,1694.2,1693.7,9.02617629]
[1745343973916,0.8085,1694.2,1693.7,9.02617629]
[1745343974119,0.7569,1694.4,1693.9,9.65582926]
[1745343974299,0.7569,1694.4,1693.9,3.7523]
[1745343974606,0.7569,1694.4,1694.0,0.1215425]
[1745343975413,6.65869479,1694.4,1694.0,0.1215425]
[1745343976316,0.7569,1694.4,1694.0,0.1215425]
[1745343976515,6.65872456,1694.4,1694.0,0.1215425]
[1745343976917,8.52476059,1694.4,1694.0,0.1215425]
[1745343979017,2.62293603,1694.4,1694.0,0.1215425]
[1745343979245,0.7569,1694.4,1694.0,0.1215425]
[1745343979536,6.65870735,1694.4,1694.0,0.1215425]
[1745343981315,0.7569,1694.4,1694.0,0.1215425]
[1745343981526,6.65879027,1694.4,1694.0,0.1215425]
[1745343982142,12.56083152,1694.4,1694.0,0.1215425]
[1745343982443,8.52487342,1694.4,1694.0,0.1215425]
[1745343982881,1.8684575,1694.0,1693.9,3.7523]
[1745343983373,7.77174947,1694.0,1693.6,0.7523]
[1745343983661,7.77175531,1694.0,1693.6,0.7523]
[1745343983872,13.87175531,1694.0,1693.6,0.7523]
[1745343984036,1.38717553,1693.9,1693.6,0.7523]
[1745343984243,7.9684575,1694.0,1693.6,3.7523]
[1745343984538,7.9684575,1694.0,1693.6,9.65675406]
[1745343984732,7.9684575,1694.0,1693.6,3.7523]
[1745343984937,7.9684575,1694.0,1693.6,0.7523]
[1745343985166,7.9684575,1694.0,1693.6,9.65682784]
[1745343985527,7.9684575,1694.0,1693.6,11.21281609]
[1745343985861,7.9684575,1694.0,1693.9,3.7523]
[1745343986031,1.8684575,1694.0,1693.9,9.65583621]
[1745343986227,1.8684575,1694.0,1693.9,9.7148653]
[1745343987063,1.8684575,1694.0,1693.9,9.65583621]
[1745343987357,1.8684575,1694.0,1693.9,17.15091985]
[1745343987670,0.7673,1694.7,1694.3,0.7712]
[1745343987882,6.5393,1694.9,1694.4,0.05901277]
[1745343988164,0.7673,1694.9,1694.4,9.35250268]
[1745343989823,6.1,1695.0,1694.6,3.7712]
[1745343990326,6.1,1695.0,1694.6,1.73845699]
[1745343990659,6.1,1695.0,1694.8,3.0]
[1745343990852,0.7673,1695.3,1694.9,0.7712]
[1745343991065,6.1,1695.4,1695.1,3.0]
[1745343991371,0.7673,1695.5,1695.1,3.0]
[1745343992732,5.89748384,1695.7,1695.3,5.89847076]
[1745343992733,0.7673,1695.7,1695.3,5.89847076]
[1745343993064,0.7673,1695.7,1695.3,4.03184281]
[1745343993560,6.1,1695.8,1695.4,3.0]
[1745343993766,6.8673,1695.9,1695.4,8.8982561]
[1745343993941,6.8673,1695.9,1695.5,0.7712]
[1745343994335,8.14366784,1695.9,1695.5,0.7712]
[1745343994532,14.04034435,1695.9,1695.3,4.77506564]
[1745343994874,14.04034435,1695.9,1695.3,10.6736743]
[1745343995162,14.04041309,1695.9,1695.3,1.77506564]
[1745343995539,8.14366784,1695.9,1695.4,0.05897361]
[1745343995745,14.04042152,1695.9,1695.3,3.8022]
[1745343996066,5.89742698,1695.7,1695.3,3.8022]
[1745343996243,5.89742698,1695.7,1695.3,3.0]
[1745343996437,0.5897427,1695.6,1695.3,3.0]
[1745343996869,14.04053845,1695.9,1695.3,3.0]
[1745343997058,5.89694077,1695.8,1695.3,3.0]
[1745343997369,6.1,1695.8,1695.3,3.0]
[1745343997669,11.99697671,1695.8,1695.3,3.0]
[1745343999574,11.99698353,1695.8,1695.3,3.0]
[1745343999876,1.19969835,1695.7,1695.3,3.0]
[1745344000213,6.1,1695.8,1695.4,0.8022]
[1745344000394,5.8974105,1695.7,1695.3,3.0]
[1745344000999,11.99708301,1695.8,1695.3,3.0]
[1745344001634,6.1,1695.8,1695.3,3.0]
[1745344001905,11.99704282,1695.8,1695.3,3.0]
[1745344002072,7.09715425,1695.7,1695.3,3.0]
[1745344002413,6.70788124,1695.6,1695.3,3.0]
[1745344002774,0.8101,1695.6,1695.2,0.8022]
[1745344002977,5.89867175,1695.3,1695.1,5.771]
[1745344003199,1.17970864,1695.3,1695.0,0.828]
[1745344003388,5.89841466,1695.4,1695.0,0.828]
[1745344003389,5.89835193,1695.4,1695.0,0.828]
[1745344003708,11.99810029,1695.5,1695.0,0.828]
[1745344003870,6.1,1695.5,1695.1,5.89919369]
[1745344004067,6.1,1695.5,1695.2,6.72700178]
[1745344004271,6.1,1695.5,1695.3,3.05897966]
[1745344004507,6.1,1695.5,1695.3,4.0375778]
[1745344004709,6.1,1695.5,1695.3,3.97859814]
[1745344005004,6.1,1695.5,1695.3,4.42576111]
[1745344005320,6.1,1695.5,1695.4,0.828]
[1745344005500,6.1,1695.5,1695.4,3.828]
[1745344005707,6.1,1695.5,1695.4,4.9491155]
[1745344006106,5.89657594,1695.9,1695.4,4.9491155]
[1745344006417,18.70298987,1696.0,1695.4,4.9491155]
[1745344006579,12.80648499,1696.0,1695.4,4.9491155]
[1745344006784,5.89658356,1695.9,1695.4,4.9491155]
[1745344007083,7.76689041,1695.9,1695.4,4.9491155]
[1745344008109,7.76689041,1695.9,1695.4,3.828]
[1745344012454,1.87030685,1695.9,1695.4,3.828]
[1745344012937,7.767092,1695.9,1695.4,3.828]
[1745344013148,5.89701891,1695.8,1695.4,3.828]
[1745344013810,5.89738753,1695.7,1695.4,3.828]
[1745344014012,5.89774581,1695.6,1695.2,0.828]
[1745344014243,5.89774581,1695.6,1695.2,3.828]
[1745344014744,11.79563501,1695.6,1695.2,3.828]
[1745344015136,5.89774581,1695.6,1695.2,3.828]
[1745344015455,6.7075571,1695.7,1695.2,3.828]
[1745344015663,0.8101,1695.7,1695.2,9.72686821]
[1745344015943,7.76706488,1695.9,1695.4,0.8311]
[1745344015944,5.89666493,1695.9,1695.4,0.8311]
[1745344016112,5.89669762,1695.9,1695.4,0.8311]
[1745344016309,12.75289556,1696.0,1695.4,3.8311]
[1745344016523,5.8966906,1695.9,1695.4,3.8311]
[1745344016723,5.8966906,1695.9,1695.4,4.80708119]
[1745344020563,18.64934733,1696.0,1695.4,4.80708119]
[1745344020854,5.89658978,1695.9,1695.4,4.80708119]
[1745344021231,12.75288084,1696.0,1695.4,10.70521518]
[1745344021565,12.75288084,1696.0,1695.4,4.80708119]
[1745344021732,14.60496892,1696.0,1695.4,4.80708119]
[1745344022160,5.89704082,1695.8,1695.4,1.80708119]
[1745344022359,5.89658687,1695.9,1695.4,3.8311]
[1745344022565,13.84851001,1696.0,1695.5,0.8311]
[1745344022769,5.89669744,1695.9,1695.5,0.8311]
[1745344023467,7.95208808,1696.0,1695.5,0.8311]
[1745344023663,5.89731391,1695.7,1695.5,0.8311]
[1745344023844,5.89731391,1695.7,1695.3,3.8311]
[1745344024044,5.89765672,1695.6,1695.3,0.8311]
[1745344024240,5.89846819,1695.4,1695.1,0.8311]
[1745344025052,5.89798844,1695.5,1695.1,0.8311]
[1745344025365,6.1,1695.6,1695.1,0.8311]
[1745344025766,11.99765198,1695.6,1695.1,1.27431153]
[1745344026064,11.99765198,1695.6,1695.1,2.88456686]
[1745344026432,6.1,1695.6,1695.2,0.8311]
[1745344026966,6.1,1695.6,1695.3,0.8311]
[1745344027338,11.99771622,1695.6,1695.3,0.8311]
[1745344027733,6.1,1695.6,1695.3,0.8311]
[1745344027944,6.1,1695.6,1695.3,1.21421]
[1745344028748,11.99788636,1695.6,1695.3,0.8311]
[1745344029081,5.89812781,1695.5,1695.2,3.8311]
[1745344029582,12.75438636,1695.6,1695.2,0.8311]
[1745344029787,12.75412726,1695.6,1695.2,0.8311]
[1745344030098,5.89811001,1695.5,1695.2,0.8311]
[1745344031191,12.75412726,1695.6,1695.2,0.8311]
[1745344031350,14.61928182,1695.6,1695.2,0.8311]
[1745344031546,7.96515456,1695.6,1695.2,0.8311]
[1745344031762,6.1,1695.6,1695.2,0.8311]
[1745344031991,6.1,1695.6,1695.2,3.8311]
[1745344032290,6.1,1695.6,1695.3,0.7886]
[1745344033357,11.99772985,1695.6,1695.3,0.7886]
[1745344034093,6.1,1695.6,1695.3,0.7886]
[1745344034387,11.99762878,1695.6,1695.3,0.7886]
[1745344034573,6.1,1695.6,1695.3,0.7886]
[1745344034774,6.1,1695.6,1695.4,0.7886]
[1745344035092,6.1,1695.6,1695.4,3.7886]
[1745344035486,18.71667986,1696.0,1695.4,3.7886]
[1745344035893,5.8966295,1695.9,1695.4,3.7886]
[1745344036111,11.79352187,1695.9,1695.4,3.7886]
[1745344036394,5.8966295,1695.9,1695.4,4.205346]
[1745344036791,12.82023709,1696.0,1695.5,0.7886]
[1745344036969,5.8965998,1695.9,1695.5,0.7886]
[1745344037685,11.99644031,1696.0,1695.5,3.7886]
[1745344037862,6.1,1696.0,1695.6,0.7886]
[1745344038059,6.1,1696.0,1695.6,1.16746]
[1745344038263,11.99635665,1696.0,1695.6,1.16746]
[1745344038595,11.99624045,1696.0,1695.6,1.16746]
[1745344039093,6.1,1696.0,1695.6,1.16746]
[1745344039663,23.6600941,1696.1,1695.6,1.16746]
[1745344039866,17.76396088,1696.1,1695.6,1.16746]
[1745344040194,5.89625388,1696.0,1695.6,1.16746]
[1745344041500,17.76396088,1696.1,1695.6,1.16746]
[1745344042202,11.868,1696.1,1695.6,1.16746]
[1745344042384,6.1,1696.3,1696.0,0.7886]
[1745344042593,6.1,1696.4,1696.0,1.75710631]
[1745344042895,6.1,1696.4,1696.0,0.7886]
[1745344043324,6.1,1696.7,1696.2,5.92871192]
[1745344043483,5.89396267,1696.7,1696.3,0.7886]
[1745344043671,11.99367694,1696.8,1696.3,0.7886]
[1745344043875,5.8942749,1696.6,1696.3,0.7886]
[1745344044186,5.89380795,1696.7,1696.3,0.7886]
[1745344045498,5.8942691,1696.6,1696.3,0.7886]
[1745344045876,5.89380795,1696.7,1696.3,0.7886]
[1745344046289,17.88736713,1696.8,1696.3,0.7886]
[1745344046496,5.89391219,1696.7,1696.3,0.7886]
[1745344046979,11.99361931,1696.8,1696.3,0.7886]
[1745344047370,6.1,1696.8,1696.3,0.7886]
[1745344047575,18.35746402,1696.9,1696.5,3.0]
[1745344047576,6.1,1696.9,1696.5,3.0]
[1745344047776,6.1,1696.9,1696.6,1.0618]
[1745344047976,5.89291975,1697.0,1696.6,1.0618]
[1745344048386,11.99247817,1697.1,1696.6,1.0618]
[1745344048586,6.1,1697.1,1696.6,1.0618]
[1745344048795,6.1,1697.1,1696.7,0.7618]
[1745344049587,11.99242185,1697.1,1696.7,3.7618]
[1745344049790,11.9924124,1697.1,1696.8,0.37618]
[1745344050322,6.1,1697.1,1696.9,0.7618]
[1745344054908,11.99252545,1697.1,1696.9,0.7618]
[1745344055103,6.1,1697.1,1696.7,0.7618]
[1745344055306,6.1,1697.1,1696.8,3.0]
[1745344055624,6.1,1697.1,1696.9,1.0618]
[1745344056030,17.88394322,1697.3,1696.9,1.0618]
[1745344056330,5.89208152,1697.2,1696.9,1.0618]
[1745344056525,11.99193867,1697.3,1696.9,1.0618]
[1745344056889,17.88391018,1697.3,1696.9,1.0618]
[1745344057116,5.89206405,1697.2,1696.9,1.0618]
[1745344057528,17.88397857,1697.3,1696.9,1.0618]
[1745344057925,5.89206705,1697.2,1696.9,1.0618]
[1745344058831,11.78436666,1697.2,1696.9,1.0618]
[1745344059026,11.78436666,1697.2,1696.7,0.7618]
[1745344059027,11.78457516,1697.2,1696.7,0.7618]
[1745344059185,5.8922632,1697.2,1696.7,0.7618]
[1745344059393,11.99190235,1697.3,1696.9,0.7618]
[1745344059791,5.89224036,1697.2,1696.9,0.7618]
[1745344060018,11.78520007,1697.1,1696.9,0.7618]
[1745344060215,11.78520038,1697.1,1696.8,3.0]
[1745344060429,5.89252282,1697.1,1696.8,3.0]
[1745344060928,5.89275191,1697.0,1696.7,0.7618]
[1745344061116,5.89324544,1696.9,1696.6,4.1026]
[1745344061323,5.89318271,1696.9,1696.6,4.1026]
[1745344061520,17.88583021,1697.0,1696.6,4.1026]
[1745344061746,5.89314552,1696.9,1696.6,3.8026]
[1745344061930,11.99287225,1697.0,1696.6,0.8026]
[1745344062269,5.89448865,1696.5,1696.0,6.73131192]
[1745344062399,11.99448865,1696.5,1696.0,6.73131192]
[1745344062603,5.8954764,1696.3,1696.0,0.8026]
[1745344062900,5.89553118,1696.2,1695.8,6.73131192]
[1745344063437,5.89553118,1696.2,1695.9,3.0]
[1745344063747,6.56023123,1696.3,1695.8,6.73131192]
[1745344064245,6.56023123,1696.3,1695.9,3.0]
[1745344064746,5.89538359,1696.3,1695.9,3.0]
[1745344065047,5.89496216,1696.4,1695.9,3.0]
[1745344065197,5.89530697,1696.3,1696.0,0.8026]
[1745344065610,5.89542422,1696.3,1695.8,3.8026]
[1745344065815,5.89498819,1696.4,1695.9,5.92871192]
[1745344066022,5.89498819,1696.4,1695.9,6.90184311]
[1745344066227,5.89498819,1696.4,1696.0,0.8026]
[1745344066636,5.89533767,1696.3,1696.0,0.8026]
[1745344066953,5.89568339,1696.2,1696.0,0.8026]
[1745344067252,5.89560396,1696.2,1695.9,0.8026]
[1745344067920,11.79083654,1696.3,1695.9,0.8026]
[1745344068120,11.790843,1696.3,1695.9,0.8026]
[1745344068451,5.89501018,1696.4,1695.9,1.18286]
[1745344068652,12.15061154,1696.5,1695.9,7.11157192]
[1745344068969,18.0453004,1696.5,1696.0,0.8026]
[1745344069458,6.1,1696.5,1696.1,5.92871192]
[1745344069765,6.1,1696.5,1696.3,0.8026]
[1745344070849,5.89426382,1696.6,1696.3,0.8026]
[1745344071149,6.1,1696.7,1696.4,3.0]
[1745344071348,11.99357617,1696.8,1696.4,3.0]
[1745344071549,25.168,1697.0,1696.5,0.8026]
[1745344071550,31.268,1697.0,1696.5,0.8026]
[1745344071751,6.1,1697.0,1696.7,0.8026]
[1745344071953,6.1,1697.0,1696.7,1.18286]
[1745344072119,11.99253964,1697.1,1696.7,1.18286]
[1745344072319,6.1,1697.1,1696.7,1.18286]
[1745344072862,5.89311158,1696.9,1696.7,0.8026]
[1745344073068,5.89344648,1696.8,1696.5,0.8026]
[1745344073647,5.89392999,1696.7,1696.5,0.8026]
[1745344073854,6.1,1696.7,1696.5,0.8026]
[1745344074975,6.1,1696.7,1696.5,6.73131192]
[1745344075183,6.1,1696.7,1696.6,0.67313119]
[1745344075975,6.1,1696.7,1696.5,0.8026]
[1745344077263,6.1,1696.7,1696.6,8.92871192]
[1745344077466,6.1,1696.7,1696.6,15.61605314]
[1745344077664,6.1,1696.7,1696.6,9.72191192]
[1745344078982,6.1,1696.7,1696.6,15.61605314]
[1745344079175,6.1,1696.7,1696.6,11.87293247]
[1745344079374,6.1,1696.7,1696.6,9.72191192]
[1745344079559,5.8925032,1697.1,1696.6,9.72191192]
[1745344080057,11.99226646,1697.2,1696.6,9.72191192]
[1745344080253,5.89244792,1697.1,1696.6,9.72191192]
[1745344080486,17.88461566,1697.2,1696.6,9.72191192]
[1745344080671,5.89241767,1697.1,1696.7,0.97219119]
[1745344080870,11.99226646,1697.2,1696.7,0.97219119]
[1745344081086,5.8924134,1697.1,1696.7,0.97219119]
[1745344081379,5.8924134,1697.1,1696.6,9.72191192]
[1745344081549,11.9921767,1697.2,1696.6,9.72191192]
[1745344081749,5.89241607,1697.1,1696.6,9.72191192]
[1745344082885,11.9921767,1697.2,1696.7,0.7932]
[1745344083769,6.1,1697.2,1696.7,0.7932]
[1745344084081,6.32455228,1697.5,1696.7,0.7932]
[1745344084082,6.1,1697.5,1697.0,9.72191192]
[1745344084336,17.72385998,1697.6,1697.0,17.17603749]
[1745344084453,5.89101828,1697.5,1697.0,11.2834004]
[1745344084655,17.72385998,1697.6,1697.1,0.7932]
[1745344084886,6.67092502,1697.7,1697.2,5.92871192]
[1745344085085,5.89076976,1697.6,1697.2,5.92871192]
[1745344085294,5.89103327,1697.5,1697.2,0.67219119]
[1745344085463,5.89141886,1697.4,1697.1,0.7932]
[1745344087194,11.78253223,1697.5,1697.1,0.7932]
[1745344087380,5.89154519,1697.4,1697.1,0.7932]
[1745344087759,6.6708801,1697.7,1697.1,0.7932]
[1745344087959,6.67089941,1697.7,1697.2,5.92871192]
[1745344088164,5.89070158,1697.6,1697.2,6.60679484]
[1745344088762,5.89102357,1697.5,1697.2,0.67808292]
[1745344088964,5.89102357,1697.5,1697.1,0.7932]
[1745344089164,5.89070158,1697.6,1697.1,0.7932]
[1745344089365,5.89080445,1697.6,1697.1,0.7932]
[1745344090266,5.89106561,1697.5,1697.1,0.7932]
[1745344090797,11.78236939,1697.5,1697.1,0.7932]
[1745344090999,11.78236939,1697.5,1697.1,4.92154004]
[1745344091000,5.89106561,1697.5,1697.1,4.92154004]
[1745344091300,5.89079909,1697.6,1696.8,3.7804]
[1745344091301,5.89185059,1697.3,1696.8,3.7804]
[1745344091601,5.89148736,1697.4,1696.9,0.7804]
[1745344092175,5.89148736,1697.4,1697.0,3.0]
[1745344092376,5.89103229,1697.5,1697.1,6.76803322]
[1745344092577,6.66210348,1697.6,1697.1,7.68591524]
[1745344092775,12.55308851,1697.6,1697.1,7.68591524]
[1745344092994,0.7712,1697.6,1697.1,7.68591524]
[1745344093297,11.78111626,1697.7,1697.1,7.68591524]
[1745344093609,5.89086734,1697.6,1697.1,1.75720332]
[1745344093770,5.89106114,1697.5,1697.1,1.75720332]
[1745344094100,5.89153818,1697.4,1697.1,0.7804]
[1745344094265,5.8920575,1697.2,1696.9,0.7924]
[1745344094470,5.89176518,1697.3,1696.9,0.7924]
[1745344094471,5.89203231,1697.3,1696.9,0.7924]
[1745344094783,11.78405454,1697.3,1696.9,0.7924]
[1745344094965,5.89202223,1697.3,1696.9,0.7924]
[1745344096008,6.897,1697.5,1697.0,3.0]
[1745344096210,12.78818708,1697.5,1697.0,3.0]
[1745344096413,11.99118708,1697.5,1697.1,0.7924]
[1745344096599,17.88245414,1697.5,1697.1,0.7924]
[1745344096796,11.99118708,1697.5,1697.1,0.7924]
[1745344097113,6.1,1697.5,1697.2,3.0]
[1745344098491,6.1,1697.5,1697.1,0.7924]
[1745344099008,11.99104189,1697.5,1697.1,0.7924]
[1745344099578,17.88233841,1697.5,1697.1,0.7924]
[1745344099776,11.99104189,1697.5,1697.1,0.7924]
[1745344100078,13.77923361,1697.5,1697.1,0.7924]
[1745344100694,13.77930467,1697.5,1697.1,0.7924]
[1745344101586,6.1,1697.5,1697.1,0.7924]
[1745344101785,6.1,1697.5,1697.3,3.0]
[1745344102017,6.1,1697.5,1697.4,0.7924]
[1745344102218,11.99037542,1697.7,1697.4,0.7924]
[1745344102398,17.88097715,1697.7,1697.4,0.7924]
[1745344102603,5.89067914,1697.6,1697.4,0.7924]
[1745344103002,11.99037542,1697.7,1697.4,0.7924]
[1745344103408,6.1,1697.7,1697.4,0.7924]
[1745344103579,11.99034432,1697.7,1697.4,0.7924]
[1745344104920,11.99032365,1697.7,1697.4,0.7924]
[1745344107589,5.89070819,1697.6,1697.4,0.7924]
[1745344108021,17.88089932,1697.7,1697.4,0.7924]
[1745344108189,11.99032365,1697.7,1697.3,3.0]
[1745344108388,5.89070888,1697.6,1697.3,3.0]
[1745344108585,0.30745841,1697.8,1697.5,5.92871192]
[1745344108885,12.78678606,1697.9,1697.5,5.92871192]
[1745344109085,5.88998448,1697.8,1697.5,5.92871192]
[1745344109286,11.98975207,1697.9,1697.5,5.92871192]
[1745344109484,17.87963906,1697.9,1697.5,5.92871192]
[1745344109715,5.89025612,1697.8,1697.4,3.7687]
[1745344109897,5.89024787,1697.8,1697.4,3.7687]
[1745344110418,5.89100575,1697.6,1697.1,3.7687]
[1745344110606,5.89118628,1697.5,1697.1,3.7687]
[1745344110985,5.89118628,1697.5,1697.0,0.7687]
[1745344110986,5.89215614,1697.2,1697.0,0.7687]
[1745344111185,5.89215614,1697.2,1696.7,6.22480623]
[1745344111186,5.89286944,1697.0,1696.8,0.7687]
[1745344111399,5.89260046,1697.1,1696.8,0.7687]
[1745344111988,6.1,1697.1,1696.6,6.4897]
[1745344112329,6.1,1697.1,1696.4,0.7687]
[1745344112330,5.89397111,1696.7,1696.4,0.7687]
[1745344112998,6.71598283,1696.8,1696.4,0.7687]
[1745344113198,11.61426476,1696.9,1696.4,0.7687]
[1745344113510,11.61426476,1696.9,1696.4,1.44433564]
[1745344113511,5.89367468,1696.8,1696.4,1.44433564]
[1745344113687,11.61423715,1696.9,1696.4,0.7687]
[1745344114017,11.78665563,1696.9,1696.4,0.7687]
[1745344114363,5.89357789,1696.8,1696.4,0.7687]
[1745344114532,5.89432248,1696.6,1696.4,0.7687]
[1745344114696,5.89400788,1696.7,1696.3,0.7687]
[1745344115220,11.7880558,1696.7,1696.3,0.7687]
[1745344115397,5.89400788,1696.7,1696.3,0.7687]
[1745344115725,12.81611507,1696.8,1696.3,0.7687]
[1745344115923,6.1,1696.8,1696.4,0.7687]
[1745344116217,11.99363436,1696.8,1696.4,1.14557]
[1745344117231,6.1,1696.8,1696.4,1.14557]
[1745344117402,5.89394281,1696.7,1696.4,0.7687]
[1745344118645,11.7879969,1696.7,1696.4,0.7687]
[1745344118850,5.89394281,1696.7,1696.4,0.7687]
[1745344119016,6.1,1696.8,1696.1,3.0]
[1745344119017,5.89448865,1696.5,1696.1,0.7687]
[1745344119221,11.78930254,1696.5,1696.1,0.7687]
[1745344119513,5.89448865,1696.5,1696.1,0.7687]
[1745344119944,12.61119783,1696.6,1696.1,0.7687]
[1745344120113,5.89429334,1696.6,1696.1,0.7687]
[1745344120307,5.89429334,1696.6,1696.2,0.05894839]
[1745344120823,17.88737338,1696.8,1696.3,0.7687]
[1745344121040,5.89392724,1696.7,1696.3,1.14557]
[1745344121703,6.1,1696.8,1696.3,1.14557]
[1745344121906,11.99359211,1696.8,1696.3,0.7687]
[1745344122106,5.89393726,1696.7,1696.3,0.7687]
[1745344122754,5.89418281,1696.6,1696.3,0.7687]
[1745344122966,5.89462814,1696.5,1696.3,0.7687]
[1745344123370,5.89418281,1696.6,1696.3,0.7687]
[1745344123569,7.07299869,1696.6,1696.3,0.7687]
[1745344124122,5.8945891,1696.5,1696.3,0.7687]
[1745344125239,13.78473503,1696.6,1696.1,0.84705251]
[1745344125555,7.89027187,1696.6,1696.1,0.84705251]
[1745344125858,6.71145599,1696.6,1696.1,0.84705251]
[1745344126059,5.89461002,1696.5,1696.1,0.7881]
[1745344127459,11.61699503,1696.7,1696.1,0.7881]
[1745344127833,17.51105118,1696.7,1696.1,0.7881]
[1745344128072,17.5110581,1696.7,1696.1,0.7881]
[1745344128228,11.61699503,1696.7,1696.1,0.7881]
[1745344128428,5.723,1696.7,1696.2,0.84704677]
[1745344128732,11.61688931,1696.7,1696.2,0.7881]
[1745344128956,5.89388931,1696.7,1696.2,0.7881]
[1745344130663,5.89437665,1696.6,1696.2,1.81544619]
[1745344130862,5.89437665,1696.6,1696.2,0.7881]
[1745344132831,5.89505619,1696.4,1696.2,0.7881]
[1745344133824,5.89460104,1696.5,1696.2,0.7881]